[Event "*** Titled Tuesday Blitz"]
[Site "Chess.com"]
[Date "2021.02.09"]
[Round "7"]
[White "BilodeauA"]
[Black "RD4ever"]
[Result "0-1"]
[WhiteElo "2900"]
[BlackElo "2881"]
[TimeControl "180+1"]
[EndTime "11:18:20 PST"]
[Termination "RD4ever won by checkmate"]

1. e4 {[%clk 0:03:00.9]} 1... e6 {[%clk 0:02:58.5]} 2. d4 {[%clk 0:02:58.8]}
2... d5 {[%clk 0:02:58.3]} 3. Nd2 {[%clk 0:02:59.6]} 3... c5 {[%clk 0:02:54.8]}
4. exd5 {[%clk 0:02:59.7]} 4... exd5 {[%clk 0:02:55.7]} 5. Ngf3 {[%clk
0:02:57.9]} 5... Nc6 {[%clk 0:02:56.2]} 6. Bb5 {[%clk 0:02:57.1]} 6... Qe7+
{[%clk 0:02:56.3]} 7. Qe2 {[%clk 0:02:56.3]} 7... Qxe2+ {[%clk 0:02:55.7]} 8.
Kxe2 {[%clk 0:02:57.2]} 8... a6 {[%clk 0:02:55.9]} 9. Bxc6+ {[%clk 0:02:52.9]}
9... bxc6 {[%clk 0:02:56.8]} 10. Re1 {[%clk 0:02:53.3]} 10... f6 {[%clk
0:02:56.3]} 11. b3 {[%clk 0:02:52.2]} 11... cxd4 {[%clk 0:02:30.6]} 12. Nxd4
{[%clk 0:02:49.9]} 12... c5 {[%clk 0:02:30.8]} 13. N4f3 {[%clk 0:02:48]} 13...
Kf7 {[%clk 0:02:19.8]} 14. c4 {[%clk 0:02:48.3]} 14... Bb7 {[%clk 0:02:13.4]}
15. Ba3 {[%clk 0:02:45.4]} 15... d4 {[%clk 0:02:09.4]} 16. Kd3 {[%clk 0:02:41]}
16... Nh6 {[%clk 0:02:08.4]} 17. Ne4 {[%clk 0:02:39]} 17... Rc8 {[%clk 0:02:08]}
18. Rab1 {[%clk 0:02:32]} 18... a5 {[%clk 0:02:06.8]} 19. h3 {[%clk 0:02:26]}
19... Be7 {[%clk 0:01:57.2]} 20. Re2 {[%clk 0:02:02.9]} 20... Rhd8 {[%clk
0:01:55]} 21. Rbe1 {[%clk 0:02:01.3]} 21... Bf8 {[%clk 0:01:55.2]} 22. g4 {[%clk
0:01:59.3]} 22... a4 {[%clk 0:01:37.6]} 23. Bc1 {[%clk 0:01:56.9]} 23... Ng8
{[%clk 0:01:33.6]} 24. h4 {[%clk 0:01:51.4]} 24... axb3 {[%clk 0:01:32.5]} 25.
axb3 {[%clk 0:01:51.3]} 25... Ne7 {[%clk 0:01:27.3]} 26. h5 {[%clk 0:01:47.8]}
26... Nc6 {[%clk 0:01:26.1]} 27. Bd2 {[%clk 0:01:44.6]} 27... Ra8 {[%clk
0:01:14.1]} 28. Rb1 {[%clk 0:01:35.7]} 28... h6 {[%clk 0:01:06]} 29. Ree1 {[%clk
0:01:34.4]} 29... Re8 {[%clk 0:00:59.6]} 30. Re2 {[%clk 0:00:37.1]} 30... Bc8
{[%clk 0:00:55.8]} 31. Rg1 {[%clk 0:00:31.8]} 31... Ra3 {[%clk 0:00:54.7]} 32.
Kc2 {[%clk 0:00:27.1]} 32... d3+ {[%clk 0:00:33]} 33. Kxd3 {[%clk 0:00:26.9]}
33... Rxb3+ {[%clk 0:00:33.3]} 34. Bc3 {[%clk 0:00:26.4]} 34... Nb4+ {[%clk
0:00:32.4]} 35. Kd2 {[%clk 0:00:26.5]} 35... Bb7 {[%clk 0:00:32.7]} 36. Rge1
{[%clk 0:00:24.5]} 36... Rd8+ {[%clk 0:00:31.8]} 37. Ke3 {[%clk 0:00:15.9]}
37... Rxc3+ {[%clk 0:00:23.4]} 38. Nxc3 {[%clk 0:00:14.7]} 38... Rd3+ {[%clk
0:00:23.1]} 39. Kf4 {[%clk 0:00:12.4]} 39... Rxf3# {[%clk 0:00:24]} 0-1

[Event "*** Titled Tuesday Blitz"]
[Site "Chess.com"]
[Date "2021.02.09"]
[Round "7"]
[White "ybruned"]
[Black "Dahamdi_Sanudula"]
[Result "1-0"]
[WhiteElo "2289"]
[BlackElo "1769"]
[TimeControl "180+1"]
[EndTime "11:18:22 PST"]
[Termination "ybruned won by resignation"]

1. b3 {[%clk 0:03:00.9]} 1... Nf6 {[%clk 0:02:20.4]} 2. Bb2 {[%clk 0:03:00]}
2... e6 {[%clk 0:02:17.8]} 3. Nf3 {[%clk 0:02:58.2]} 3... d5 {[%clk 0:02:17.1]}
4. e3 {[%clk 0:02:58.6]} 4... Be7 {[%clk 0:02:15.9]} 5. Be2 {[%clk 0:02:59.1]}
5... O-O {[%clk 0:02:15.8]} 6. O-O {[%clk 0:02:59.7]} 6... b6 {[%clk 0:02:15.5]}
7. d4 {[%clk 0:03:00.2]} 7... Bb7 {[%clk 0:02:15.7]} 8. Nbd2 {[%clk 0:03:00.9]}
8... Nbd7 {[%clk 0:02:16]} 9. c4 {[%clk 0:03:01.5]} 9... Ne4 {[%clk 0:02:16.3]}
10. Ne5 {[%clk 0:02:35.3]} 10... f5 {[%clk 0:02:10]} 11. f4 {[%clk 0:02:31.5]}
11... c5 {[%clk 0:02:07.4]} 12. Nxe4 {[%clk 0:02:19.6]} 12... fxe4 {[%clk
0:02:03.9]} 13. Bg4 {[%clk 0:02:00.2]} 13... Rf6 {[%clk 0:01:57.5]} 14. Rc1
{[%clk 0:01:58.8]} 14... Bf8 {[%clk 0:01:44.2]} 15. Kh1 {[%clk 0:01:50.3]} 15...
Qe7 {[%clk 0:01:39.3]} 16. Nxd7 {[%clk 0:01:27]} 16... Qxd7 {[%clk 0:01:37.5]}
17. dxc5 {[%clk 0:01:27.6]} 17... Bxc5 {[%clk 0:01:33.6]} 18. Bxf6 {[%clk
0:01:27.1]} 18... gxf6 {[%clk 0:01:31.4]} 19. cxd5 {[%clk 0:01:26.2]} 19... Bxd5
{[%clk 0:01:29.5]} 20. Qe2 {[%clk 0:01:14.8]} 20... f5 {[%clk 0:01:28.8]} 21.
Bh3 {[%clk 0:01:12.1]} 21... a5 {[%clk 0:01:22.5]} 22. Rfd1 {[%clk 0:01:02.7]}
22... Qg7 {[%clk 0:01:21.3]} 23. g3 {[%clk 0:00:52.2]} 23... a4 {[%clk 0:01:12]}
24. bxa4 {[%clk 0:00:50.4]} 24... Rxa4 {[%clk 0:01:11]} 25. Rc2 {[%clk 0:00:51]}
25... h6 {[%clk 0:01:05.5]} 26. Bxf5 {[%clk 0:00:47.5]} 26... exf5 {[%clk
0:00:41.6]} 27. Rxd5 {[%clk 0:00:46.6]} 27... Kh7 {[%clk 0:00:34.3]} 28. Qd1
{[%clk 0:00:43.2]} 28... Ra7 {[%clk 0:00:28.4]} 29. Rcd2 {[%clk 0:00:41.3]}
29... Be7 {[%clk 0:00:26.5]} 30. Rd7 {[%clk 0:00:38.3]} 30... Rxd7 {[%clk
0:00:25.5]} 31. Rxd7 {[%clk 0:00:38.1]} 31... Kg8 {[%clk 0:00:24.3]} 32. Qd5+
{[%clk 0:00:38.2]} 32... Kf8 {[%clk 0:00:22.6]} 33. Qxf5+ {[%clk 0:00:36.4]}
33... Ke8 {[%clk 0:00:22.7]} 34. Rd1 {[%clk 0:00:36.9]} 34... Qc3 {[%clk
0:00:17.8]} 35. Qxe4 {[%clk 0:00:35.2]} 35... Kf7 {[%clk 0:00:16.2]} 36. Qd5+
{[%clk 0:00:34.1]} 36... Ke8 {[%clk 0:00:15.5]} 37. Qd4 {[%clk 0:00:32.2]} 37...
Qc6+ {[%clk 0:00:13.8]} 38. Qd5 {[%clk 0:00:30.8]} 38... Qc2 {[%clk 0:00:13.3]}
39. Qd3 {[%clk 0:00:30.4]} 39... Qc6+ {[%clk 0:00:13]} 40. e4 {[%clk 0:00:31]}
40... Kf7 {[%clk 0:00:12.5]} 41. Qd5+ {[%clk 0:00:30.6]} 1-0

[Event "*** Titled Tuesday Blitz"]
[Site "Chess.com"]
[Date "2021.02.09"]
[Round "7"]
[White "Deepweb2020"]
[Black "rugbyclub"]
[Result "1-0"]
[WhiteElo "2473"]
[BlackElo "2295"]
[TimeControl "180+1"]
[EndTime "11:18:23 PST"]
[Termination "Deepweb2020 won by checkmate"]

1. d4 {[%clk 0:03:00.9]} 1... Nf6 {[%clk 0:02:59.7]} 2. c4 {[%clk 0:03:00.8]}
2... g6 {[%clk 0:03:00.2]} 3. g3 {[%clk 0:03:00.5]} 3... Bg7 {[%clk 0:03:00.6]}
4. Nf3 {[%clk 0:03:00.3]} 4... O-O {[%clk 0:03:01.3]} 5. Bg2 {[%clk 0:03:00.6]}
5... d6 {[%clk 0:03:01.8]} 6. O-O {[%clk 0:03:00.9]} 6... Nc6 {[%clk 0:03:02.4]}
7. Nc3 {[%clk 0:03:01.1]} 7... a6 {[%clk 0:03:00.8]} 8. b3 {[%clk 0:03:01]} 8...
Bd7 {[%clk 0:02:59.4]} 9. e4 {[%clk 0:02:54.9]} 9... e6 {[%clk 0:02:53]} 10. Bg5
{[%clk 0:02:50.4]} 10... h6 {[%clk 0:02:52]} 11. Bf4 {[%clk 0:02:43]} 11... Nxd4
{[%clk 0:02:27.3]} 12. Nxd4 {[%clk 0:02:42.7]} 12... e5 {[%clk 0:02:26.9]} 13.
Be3 {[%clk 0:02:37.8]} 13... exd4 {[%clk 0:02:26.5]} 14. Bxd4 {[%clk 0:02:38.7]}
14... Ng4 {[%clk 0:02:18.3]} 15. h3 {[%clk 0:02:32.3]} 15... Bxd4 {[%clk
0:02:11.9]} 16. Qxd4 {[%clk 0:02:33.2]} 16... Ne5 {[%clk 0:02:04.8]} 17. Nd5
{[%clk 0:02:05.9]} 17... Bxh3 {[%clk 0:02:02.6]} 18. f4 {[%clk 0:02:06.2]} 18...
Bxg2 {[%clk 0:02:01.6]} 19. Kxg2 {[%clk 0:01:45.9]} 19... c6 {[%clk 0:01:50.5]}
20. fxe5 {[%clk 0:01:21.9]} 20... cxd5 {[%clk 0:01:48.1]} 21. exd5 {[%clk
0:01:09.4]} 21... dxe5 {[%clk 0:01:46.2]} 22. Qxe5 {[%clk 0:01:10.3]} 22... Qa5
{[%clk 0:01:37.7]} 23. Qf4 {[%clk 0:01:04]} 23... Kh7 {[%clk 0:01:21.1]} 24. Rh1
{[%clk 0:00:59.6]} 24... h5 {[%clk 0:01:15.2]} 25. a4 {[%clk 0:00:29.3]} 25...
Rae8 {[%clk 0:01:13.2]} 26. Rxh5+ {[%clk 0:00:17.4]} 26... Kg8 {[%clk
0:00:11.2]} 27. Qh6 {[%clk 0:00:07.5]} 27... Re2+ {[%clk 0:00:10.7]} 28. Kf3
{[%clk 0:00:06.1]} 28... gxh5 {[%clk 0:00:09.8]} 29. Qg5+ {[%clk 0:00:05.4]}
29... Kh7 {[%clk 0:00:09.1]} 30. Qxh5+ {[%clk 0:00:05.6]} 30... Kg7 {[%clk
0:00:09.4]} 31. Qg5+ {[%clk 0:00:06.1]} 31... Kh7 {[%clk 0:00:09.8]} 32. Rh1+
{[%clk 0:00:06.7]} 32... Rh2 {[%clk 0:00:10.5]} 33. Rxh2# {[%clk 0:00:07.6]} 1-0

[Event "*** Titled Tuesday Blitz"]
[Site "Chess.com"]
[Date "2021.02.09"]
[Round "7"]
[White "Volodar_Murzin"]
[Black "Onischuk_V"]
[Result "0-1"]
[WhiteElo "2620"]
[BlackElo "2828"]
[TimeControl "180+1"]
[EndTime "11:18:25 PST"]
[Termination "Onischuk_V won on time"]

1. e4 {[%clk 0:03:00.9]} 1... d6 {[%clk 0:02:59.9]} 2. Nf3 {[%clk 0:02:58.7]}
2... Nf6 {[%clk 0:03:00.1]} 3. Nc3 {[%clk 0:02:56.1]} 3... g6 {[%clk 0:03:00.6]}
4. d4 {[%clk 0:02:56]} 4... Bg7 {[%clk 0:03:00.6]} 5. Bc4 {[%clk 0:02:55.2]}
5... O-O {[%clk 0:02:56.4]} 6. O-O {[%clk 0:02:55.2]} 6... Nxe4 {[%clk
0:02:46.7]} 7. Nxe4 {[%clk 0:02:54.2]} 7... d5 {[%clk 0:02:46.9]} 8. Bd3 {[%clk
0:02:54]} 8... dxe4 {[%clk 0:02:43.6]} 9. Bxe4 {[%clk 0:02:54.9]} 9... Nd7
{[%clk 0:02:42.9]} 10. c3 {[%clk 0:02:53.6]} 10... c5 {[%clk 0:02:40.1]} 11. Be3
{[%clk 0:02:46.9]} 11... cxd4 {[%clk 0:02:39.4]} 12. Nxd4 {[%clk 0:02:44.1]}
12... a6 {[%clk 0:02:31.1]} 13. Re1 {[%clk 0:02:35.2]} 13... Qc7 {[%clk
0:02:30.1]} 14. h3 {[%clk 0:02:25.9]} 14... Nc5 {[%clk 0:02:29.4]} 15. Bf3
{[%clk 0:02:21]} 15... Rd8 {[%clk 0:02:24.1]} 16. Qe2 {[%clk 0:02:11.8]} 16...
e5 {[%clk 0:02:20.6]} 17. Nc6 {[%clk 0:02:10.6]} 17... bxc6 {[%clk 0:02:03.2]}
18. Bxc5 {[%clk 0:02:08.9]} 18... Be6 {[%clk 0:02:03.7]} 19. Rad1 {[%clk
0:01:57.7]} 19... a5 {[%clk 0:01:21.4]} 20. Rxd8+ {[%clk 0:01:36.2]} 20... Rxd8
{[%clk 0:01:20.9]} 21. Qa6 {[%clk 0:01:34.7]} 21... Rb8 {[%clk 0:01:10.2]} 22.
b3 {[%clk 0:01:28.1]} 22... Bd5 {[%clk 0:01:03.4]} 23. c4 {[%clk 0:01:04.2]}
23... Bxf3 {[%clk 0:01:00.6]} 24. gxf3 {[%clk 0:01:05.1]} 24... Qd7 {[%clk
0:00:52.2]} 25. Kg2 {[%clk 0:00:55.1]} 25... Qd2 {[%clk 0:00:52]} 26. Re3 {[%clk
0:00:46.6]} 26... Qxa2 {[%clk 0:00:46.4]} 27. Qxc6 {[%clk 0:00:32]} 27... h5
{[%clk 0:00:44.3]} 28. Rd3 {[%clk 0:00:14.1]} 28... Qc2 {[%clk 0:00:39.5]} 29.
Rd7 {[%clk 0:00:09.9]} 29... Qf5 {[%clk 0:00:33.3]} 30. Rb7 {[%clk 0:00:02.5]}
30... Rc8 {[%clk 0:00:29.7]} 31. Qd5 {[%clk 0:00:01.7]} 31... Bh6 {[%clk
0:00:25.3]} 32. Be3 {[%clk 0:00:01.5]} 32... Bxe3 {[%clk 0:00:22.9]} 33. fxe3
{[%clk 0:00:02.4]} 33... Re8 {[%clk 0:00:17.4]} 34. Qe4 {[%clk 0:00:01.5]} 34...
Qg5+ {[%clk 0:00:17.2]} 0-1

[Event "*** Titled Tuesday Blitz"]
[Site "Chess.com"]
[Date "2021.02.09"]
[Round "7"]
[White "Kislov_Oleg"]
[Black "Margency"]
[Result "1/2-1/2"]
[WhiteElo "2497"]
[BlackElo "2646"]
[TimeControl "180+1"]
[EndTime "11:18:27 PST"]
[Termination "Game drawn by repetition"]

1. e4 {[%clk 0:03:00.9]} 1... c5 {[%clk 0:02:59.6]} 2. Nf3 {[%clk 0:03:00.6]}
2... d6 {[%clk 0:02:58]} 3. c3 {[%clk 0:03:00.6]} 3... Nf6 {[%clk 0:02:55.9]} 4.
Be2 {[%clk 0:03:00.6]} 4... Bd7 {[%clk 0:02:50.1]} 5. Qc2 {[%clk 0:02:58]} 5...
Qc7 {[%clk 0:02:49.4]} 6. d4 {[%clk 0:02:53.9]} 6... cxd4 {[%clk 0:02:49.2]} 7.
Nxd4 {[%clk 0:02:54.1]} 7... g6 {[%clk 0:02:30]} 8. O-O {[%clk 0:02:51.1]} 8...
Bg7 {[%clk 0:02:30.1]} 9. Be3 {[%clk 0:02:42]} 9... O-O {[%clk 0:02:29.2]} 10.
Nd2 {[%clk 0:02:36.3]} 10... Rc8 {[%clk 0:02:28]} 11. Rac1 {[%clk 0:02:32.5]}
11... Nc6 {[%clk 0:02:27.4]} 12. Qb1 {[%clk 0:02:29.8]} 12... d5 {[%clk
0:02:16.3]} 13. f3 {[%clk 0:02:01.7]} 13... dxe4 {[%clk 0:02:01.1]} 14. Nxe4
{[%clk 0:02:00.7]} 14... Nd5 {[%clk 0:01:56.7]} 15. Nxc6 {[%clk 0:01:45.8]}
15... Bxc6 {[%clk 0:01:48.8]} 16. Bf2 {[%clk 0:01:37.3]} 16... Bh6 {[%clk
0:01:32]} 17. Rcd1 {[%clk 0:01:30.3]} 17... Ne3 {[%clk 0:01:31.3]} 18. Bxe3
{[%clk 0:01:30]} 18... Bxe3+ {[%clk 0:01:32]} 19. Kh1 {[%clk 0:01:30.4]} 19...
Rd8 {[%clk 0:01:27.8]} 20. Rd3 {[%clk 0:01:26.7]} 20... Bh6 {[%clk 0:01:16]} 21.
Rfd1 {[%clk 0:01:25.2]} 21... Bg7 {[%clk 0:00:54]} 22. Rxd8+ {[%clk 0:01:16.7]}
22... Rxd8 {[%clk 0:00:53.4]} 23. Rxd8+ {[%clk 0:01:17.6]} 23... Qxd8 {[%clk
0:00:53.4]} 24. Qd3 {[%clk 0:01:18.4]} 24... Qxd3 {[%clk 0:00:50.8]} 25. Bxd3
{[%clk 0:01:18.5]} 25... h6 {[%clk 0:00:39.7]} 26. Kg1 {[%clk 0:01:16.1]} 26...
Kf8 {[%clk 0:00:33.4]} 27. Kf2 {[%clk 0:01:15.4]} 27... e6 {[%clk 0:00:31.1]}
28. Nc5 {[%clk 0:01:07.9]} 28... Ke7 {[%clk 0:00:20.1]} 29. Be4 {[%clk
0:01:06.4]} 29... Bxe4 {[%clk 0:00:20.3]} 30. fxe4 {[%clk 0:01:01.1]} 30... b6
{[%clk 0:00:20]} 31. Nd3 {[%clk 0:00:59.8]} 31... f5 {[%clk 0:00:20.1]} 32. Ke3
{[%clk 0:00:59.5]} 32... Kd6 {[%clk 0:00:20.2]} 33. c4 {[%clk 0:00:54.9]} 33...
h5 {[%clk 0:00:18.7]} 34. h3 {[%clk 0:00:54.2]} 34... Bh6+ {[%clk 0:00:18.6]}
35. Kf3 {[%clk 0:00:49.8]} 35... Bd2 {[%clk 0:00:16.8]} 36. b3 {[%clk
0:00:49.3]} 36... e5 {[%clk 0:00:15.7]} 37. g4 {[%clk 0:00:41.6]} 37... fxg4+
{[%clk 0:00:15.3]} 38. hxg4 {[%clk 0:00:41.2]} 38... h4 {[%clk 0:00:16]} 39. Kg2
{[%clk 0:00:39.9]} 39... g5 {[%clk 0:00:15.6]} 40. a4 {[%clk 0:00:36.2]} 40...
a5 {[%clk 0:00:15.3]} 41. Kf3 {[%clk 0:00:31.6]} 41... Bf4 {[%clk 0:00:14]} 42.
Kg2 {[%clk 0:00:31.2]} 42... Kc6 {[%clk 0:00:13.9]} 43. Kh3 {[%clk 0:00:31]}
43... Kd6 {[%clk 0:00:13]} 44. Kg2 {[%clk 0:00:31.1]} 44... Ke6 {[%clk
0:00:13.2]} 45. Kh3 {[%clk 0:00:31.2]} 45... Kd6 {[%clk 0:00:13.6]} 46. Kg2
{[%clk 0:00:31.4]} 1/2-1/2

[Event "*** Titled Tuesday Blitz"]
[Site "Chess.com"]
[Date "2021.02.09"]
[Round "7"]
[White "UCantHandleDenker"]
[Black "Ghost_Pepper"]
[Result "1-0"]
[WhiteElo "2623"]
[BlackElo "2416"]
[TimeControl "180+1"]
[EndTime "11:18:27 PST"]
[Termination "UCantHandleDenker won on time"]

1. Nf3 {[%clk 0:03:00.9]} 1... Nf6 {[%clk 0:02:57.7]} 2. d3 {[%clk 0:03:01.8]}
2... g6 {[%clk 0:02:57.3]} 3. g3 {[%clk 0:03:01.3]} 3... Bg7 {[%clk 0:02:56.9]}
4. Bg2 {[%clk 0:03:02]} 4... d5 {[%clk 0:02:57.3]} 5. O-O {[%clk 0:03:02.9]}
5... O-O {[%clk 0:02:57.5]} 6. Nbd2 {[%clk 0:03:03.8]} 6... c5 {[%clk
0:02:56.5]} 7. e4 {[%clk 0:03:04.4]} 7... Nc6 {[%clk 0:02:56.7]} 8. Re1 {[%clk
0:03:04.8]} 8... dxe4 {[%clk 0:02:34]} 9. dxe4 {[%clk 0:03:05.7]} 9... Nd4
{[%clk 0:02:33.7]} 10. c3 {[%clk 0:03:03.6]} 10... Nxf3+ {[%clk 0:02:32]} 11.
Qxf3 {[%clk 0:03:04.5]} 11... Bg4 {[%clk 0:02:28.9]} 12. Qe3 {[%clk 0:03:03.8]}
12... Qc8 {[%clk 0:02:22.7]} 13. e5 {[%clk 0:02:53.6]} 13... Nd7 {[%clk
0:02:14.3]} 14. h3 {[%clk 0:02:52.4]} 14... Be6 {[%clk 0:02:13.5]} 15. f4 {[%clk
0:02:49.5]} 15... Rd8 {[%clk 0:02:03.1]} 16. Ne4 {[%clk 0:02:47.2]} 16... Nb6
{[%clk 0:01:22.2]} 17. Nxc5 {[%clk 0:02:37.6]} 17... Bxh3 {[%clk 0:01:21.7]} 18.
Bxb7 {[%clk 0:02:31.3]} 18... Qg4 {[%clk 0:01:21.2]} 19. Qf3 {[%clk 0:02:25.2]}
19... Rab8 {[%clk 0:01:06.5]} 20. Qxg4 {[%clk 0:02:09.6]} 20... Bxg4 {[%clk
0:01:07.4]} 21. Ba6 {[%clk 0:02:09.7]} 21... Rd5 {[%clk 0:01:00.1]} 22. Be3
{[%clk 0:02:07]} 22... f6 {[%clk 0:00:57.2]} 23. e6 {[%clk 0:01:58.2]} 23... f5
{[%clk 0:00:52.2]} 24. Rac1 {[%clk 0:01:48.6]} 24... g5 {[%clk 0:00:32.3]} 25.
fxg5 {[%clk 0:01:42.4]} 25... Be5 {[%clk 0:00:32.1]} 26. Nd7 {[%clk 0:01:35.7]}
26... Nxd7 {[%clk 0:00:27]} 27. exd7 {[%clk 0:01:35.7]} 27... Rxd7 {[%clk
0:00:24.8]} 28. Bc4+ {[%clk 0:01:32.9]} 28... Kg7 {[%clk 0:00:23.4]} 29. Bb3
{[%clk 0:01:22.1]} 29... Rd3 {[%clk 0:00:23]} 30. Bf4 {[%clk 0:01:04.1]} 30...
Bxf4 {[%clk 0:00:17.3]} 31. gxf4 {[%clk 0:01:05]} 31... Rg3+ {[%clk 0:00:17.2]}
32. Kh2 {[%clk 0:01:03.5]} 32... Rf3 {[%clk 0:00:17.7]} 33. Rxe7+ {[%clk
0:01:02]} 33... Kg6 {[%clk 0:00:17.9]} 34. Bf7+ {[%clk 0:00:59.8]} 34... Kg7
{[%clk 0:00:18.2]} 35. Bh5+ {[%clk 0:00:56.3]} 35... Kf8 {[%clk 0:00:17.7]} 36.
Bxg4 {[%clk 0:00:53.2]} 36... Rxb2+ {[%clk 0:00:13.1]} 37. Kh1 {[%clk 0:00:45]}
37... fxg4 {[%clk 0:00:13.5]} 38. Rxh7 {[%clk 0:00:42.4]} 38... g3 {[%clk
0:00:11.7]} 39. Rd1 {[%clk 0:00:39.9]} 39... Ke8 {[%clk 0:00:10.3]} 40. Re1+
{[%clk 0:00:32]} 40... Kd8 {[%clk 0:00:09.4]} 41. Rd1+ {[%clk 0:00:32.5]} 41...
Kc8 {[%clk 0:00:09.4]} 42. g6 {[%clk 0:00:29.9]} 1-0

[Event "*** Titled Tuesday Blitz"]
[Site "Chess.com"]
[Date "2021.02.09"]
[Round "7"]
[White "Marty435"]
[Black "GadimbayliA"]
[Result "1-0"]
[WhiteElo "2607"]
[BlackElo "2829"]
[TimeControl "180+1"]
[EndTime "11:18:29 PST"]
[Termination "Marty435 won by resignation"]

1. c4 {[%clk 0:03:00.9]} 1... e5 {[%clk 0:02:58.3]} 2. Nc3 {[%clk 0:03:00.5]}
2... Nf6 {[%clk 0:02:58.8]} 3. Nf3 {[%clk 0:03:00.4]} 3... Nc6 {[%clk
0:02:58.5]} 4. e3 {[%clk 0:03:01]} 4... d5 {[%clk 0:02:58]} 5. cxd5 {[%clk
0:03:01.4]} 5... Nxd5 {[%clk 0:02:58.3]} 6. Bb5 {[%clk 0:03:02.1]} 6... Nxc3
{[%clk 0:02:56.2]} 7. bxc3 {[%clk 0:03:03]} 7... Bd6 {[%clk 0:02:56.5]} 8. d4
{[%clk 0:03:01.6]} 8... exd4 {[%clk 0:02:56.8]} 9. cxd4 {[%clk 0:03:01.9]} 9...
O-O {[%clk 0:02:57.1]} 10. O-O {[%clk 0:03:02.4]} 10... Bf5 {[%clk 0:02:56.7]}
11. Re1 {[%clk 0:02:51.3]} 11... Be4 {[%clk 0:02:49.6]} 12. Bd3 {[%clk
0:02:48.8]} 12... Bxd3 {[%clk 0:02:34.5]} 13. Qxd3 {[%clk 0:02:49.7]} 13... Qd7
{[%clk 0:02:35]} 14. e4 {[%clk 0:02:45.9]} 14... Rad8 {[%clk 0:02:34.3]} 15. Bb2
{[%clk 0:02:44.1]} 15... Rfe8 {[%clk 0:02:29.1]} 16. h3 {[%clk 0:02:38.3]} 16...
f6 {[%clk 0:02:17]} 17. Rad1 {[%clk 0:02:26.8]} 17... Kh8 {[%clk 0:02:15.7]} 18.
a3 {[%clk 0:02:02.3]} 18... Qf7 {[%clk 0:02:13.2]} 19. Qc2 {[%clk 0:01:48.1]}
19... Qg6 {[%clk 0:02:06]} 20. Nh4 {[%clk 0:01:46.6]} 20... Qf7 {[%clk
0:02:04.7]} 21. Nf5 {[%clk 0:01:46.7]} 21... Bf8 {[%clk 0:02:05]} 22. d5 {[%clk
0:01:43.2]} 22... Ne5 {[%clk 0:02:03]} 23. f4 {[%clk 0:01:42.4]} 23... Ng6
{[%clk 0:02:02.4]} 24. Qf2 {[%clk 0:01:23]} 24... b6 {[%clk 0:01:53.2]} 25. Kh1
{[%clk 0:01:22.8]} 25... Bc5 {[%clk 0:01:51.4]} 26. Qg3 {[%clk 0:01:22.6]} 26...
a5 {[%clk 0:01:49.8]} 27. h4 {[%clk 0:01:18]} 27... Ne7 {[%clk 0:01:49.9]} 28.
Qg4 {[%clk 0:00:54.3]} 28... a4 {[%clk 0:01:09.9]} 29. h5 {[%clk 0:00:44.7]}
29... h6 {[%clk 0:01:03.5]} 30. Nh4 {[%clk 0:00:40.7]} 30... Rd6 {[%clk
0:00:51.5]} 31. Rd3 {[%clk 0:00:39.6]} 31... Red8 {[%clk 0:00:50.5]} 32. Rg3
{[%clk 0:00:39.6]} 32... c6 {[%clk 0:00:48.2]} 33. e5 {[%clk 0:00:34.5]} 33...
fxe5 {[%clk 0:00:23.8]} 34. fxe5 {[%clk 0:00:23.7]} 34... Rxd5 {[%clk
0:00:03.8]} 35. e6 {[%clk 0:00:24]} 35... Qg8 {[%clk 0:00:03.6]} 36. Bxg7+
{[%clk 0:00:24]} 36... Kh7 {[%clk 0:00:03.7]} 37. Qe4+ {[%clk 0:00:24.6]} 37...
Nf5 {[%clk 0:00:04.1]} 38. Nxf5 {[%clk 0:00:24.4]} 1-0

[Event "*** Titled Tuesday Blitz"]
[Site "Chess.com"]
[Date "2021.02.09"]
[Round "7"]
[White "platy3"]
[Black "elextranjero00"]
[Result "1-0"]
[WhiteElo "2850"]
[BlackElo "2593"]
[TimeControl "180+1"]
[EndTime "11:18:30 PST"]
[Termination "platy3 won by checkmate"]

1. c4 {[%clk 0:03:00.9]} 1... Nf6 {[%clk 0:02:58.4]} 2. g3 {[%clk 0:03:01]} 2...
e5 {[%clk 0:02:57.7]} 3. Bg2 {[%clk 0:03:01.4]} 3... Nc6 {[%clk 0:02:52.8]} 4.
Nc3 {[%clk 0:03:01.5]} 4... Bc5 {[%clk 0:02:48.5]} 5. e3 {[%clk 0:03:01.1]} 5...
d6 {[%clk 0:02:41.3]} 6. Nge2 {[%clk 0:03:00.8]} 6... O-O {[%clk 0:02:35.7]} 7.
O-O {[%clk 0:02:59.5]} 7... a6 {[%clk 0:02:33.3]} 8. h3 {[%clk 0:02:58.1]} 8...
Ba7 {[%clk 0:02:32.7]} 9. d3 {[%clk 0:02:58]} 9... Re8 {[%clk 0:02:32.5]} 10. a3
{[%clk 0:02:56.9]} 10... Bf5 {[%clk 0:02:32.4]} 11. g4 {[%clk 0:02:51.9]} 11...
Be6 {[%clk 0:02:27.7]} 12. Ng3 {[%clk 0:02:48.9]} 12... Rb8 {[%clk 0:02:21.4]}
13. b4 {[%clk 0:02:46.9]} 13... Ne7 {[%clk 0:02:18.9]} 14. Bb2 {[%clk
0:02:33.7]} 14... b5 {[%clk 0:02:11.7]} 15. cxb5 {[%clk 0:02:15.6]} 15... axb5
{[%clk 0:02:12.6]} 16. Rc1 {[%clk 0:02:15.2]} 16... c5 {[%clk 0:01:57.1]} 17. g5
{[%clk 0:02:00.4]} 17... Nfd5 {[%clk 0:01:45.9]} 18. Nce4 {[%clk 0:01:42.9]}
18... cxb4 {[%clk 0:01:40.8]} 19. axb4 {[%clk 0:01:42.7]} 19... Ng6 {[%clk
0:01:25.7]} 20. Nh5 {[%clk 0:01:00.2]} 20... Nh4 {[%clk 0:01:06.9]} 21. Rc6
{[%clk 0:00:50.3]} 21... Nxg2 {[%clk 0:00:49.8]} 22. Rxd6 {[%clk 0:00:31.9]}
22... Ngxe3 {[%clk 0:00:22.8]} 23. Qa1 {[%clk 0:00:30.3]} 23... Qc7 {[%clk
0:00:14.5]} 24. Rc1 {[%clk 0:00:30.3]} 24... Nc2 {[%clk 0:00:07.4]} 25. Rxc2
{[%clk 0:00:16.5]} 25... Qxc2 {[%clk 0:00:06.6]} 26. Bxe5 {[%clk 0:00:17.4]}
26... Rbc8 {[%clk 0:00:03.5]} 27. Qxa7 {[%clk 0:00:12.9]} 27... Qd1+ {[%clk
0:00:02.8]} 28. Kh2 {[%clk 0:00:03.8]} 28... Qxh5 {[%clk 0:00:03.7]} 29. Rxe6
{[%clk 0:00:03.6]} 29... Rxe6 {[%clk 0:00:02.8]} 30. Qd7 {[%clk 0:00:04.4]}
30... Rce8 {[%clk 0:00:02.8]} 31. Bg3 {[%clk 0:00:03.3]} 31... Rxe4 {[%clk
0:00:02.8]} 32. dxe4 {[%clk 0:00:02.8]} 32... Qxg5 {[%clk 0:00:02.4]} 33. Qxe8#
{[%clk 0:00:02.6]} 1-0